[Event "Titled Tuesday Blitz November 07 Late 2023"]
[White "GAO"]
[Black "Wieczorek, Oskar"]
[BlackFideId "1133950"]
[WhiteElo "2323"]
[BlackElo "2643"]
[Result "0-1"]
[Round "1"]
[TimeControl "180+1"]
[Date "2023.11.07"]
[WhiteClock "0:00:43"]
[BlackClock "0:00:15"]
[Board "112"]

1. e4 {[%clk 0:03:00]}  c5 {[%clk 0:02:52]} 2. Nf3 {[%clk 0:03:01]}  e6 {[%clk 0:02:51]} 3. c3 {[%clk 0:03:00]}  Nf6 {[%clk 0:02:49]} 4. e5 {[%clk 0:03:00]}  Nd5 {[%clk 0:02:50]} 5. d4 {[%clk 0:03:01]}  cxd4 {[%clk 0:02:51]} 6. cxd4 {[%clk 0:03:01]}  d6 {[%clk 0:02:51]} 7. a3 {[%clk 0:03:01]}  Nc6 {[%clk 0:02:52]} 8. Bd3 {[%clk 0:02:59]}  Be7 {[%clk 0:02:51]} 9. Qe2 {[%clk 0:02:59]}  b6 {[%clk 0:02:46]} 10. O-O {[%clk 0:02:55]}  Bb7 {[%clk 0:02:46]} 11. Nc3 {[%clk 0:02:54]}  Nxc3 {[%clk 0:02:46]} 12. bxc3 {[%clk 0:02:54]}  dxe5 {[%clk 0:02:47]} 13. dxe5 {[%clk 0:02:52]}  O-O {[%clk 0:02:46]} 14. Bf4 {[%clk 0:02:51]}  Qc7 {[%clk 0:02:42]} 15. Qe4 {[%clk 0:02:47]}  g6 {[%clk 0:02:36]} 16. Bh6 {[%clk 0:02:46]}  Rfd8 {[%clk 0:02:25]} 17. Rfd1 {[%clk 0:02:44]}  Nb4 {[%clk 0:02:18]} 18. Qe3 {[%clk 0:02:31]}  Rxd3 {[%clk 0:02:07]} 19. Rxd3 {[%clk 0:02:30]}  Nc2 {[%clk 0:02:08]} 20. Qc1 {[%clk 0:02:27]}  Nxa1 {[%clk 0:02:08]} 21. Qxa1 {[%clk 0:02:28]}  Rd8 {[%clk 0:02:03]} 22. Qd1 {[%clk 0:02:25]}  Be4 {[%clk 0:01:50]} 23. Rd4 {[%clk 0:02:17]}  Rd5 {[%clk 0:01:18]} 24. Qa4 {[%clk 0:02:00]}  b5 {[%clk 0:01:12]} 25. Qd1 {[%clk 0:01:50]}  Qxc3 {[%clk 0:01:02]} 26. Rxd5 {[%clk 0:01:49]}  Bxd5 {[%clk 0:01:01]} 27. a4 {[%clk 0:01:49]}  b4 {[%clk 0:00:55]} 28. Bd2 {[%clk 0:01:49]}  Qd3 {[%clk 0:00:48]} 29. Qc1 {[%clk 0:01:37]}  Qc4 {[%clk 0:00:46]} 30. Qb2 {[%clk 0:01:34]}  b3 {[%clk 0:00:44]} 31. h4 {[%clk 0:01:32]}  h5 {[%clk 0:00:43]} 32. Nd4 {[%clk 0:01:30]}  Bc5 {[%clk 0:00:32]} 33. Bc3 {[%clk 0:01:25]}  Qd3 {[%clk 0:00:17]} 34. a5 {[%clk 0:01:09]}  a6 {[%clk 0:00:17]} 35. Qa1 {[%clk 0:01:05]}  Qe4 {[%clk 0:00:16]} 36. f3 {[%clk 0:01:03]}  Qxe5 {[%clk 0:00:16]} 37. Kf1 {[%clk 0:00:56]}  Qe3 {[%clk 0:00:15]} 38. Qb2 {[%clk 0:00:48]}  Bc4+ {[%clk 0:00:15]} 39. Ne2 {[%clk 0:00:43]}  Qf2# {[%clk 0:00:15]} 0-1


[Site "https://www.chess.com"]

[Event "Titled Tuesday Blitz November 07 Late 2023"]
[White "Bogaudinov, Rushan"]
[Black "Ehlvest, Jaan"]
[WhiteFideId "4129288"]
[BlackFideId "4500016"]
[WhiteElo "2317"]
[BlackElo "2636"]
[Result "0-1"]
[Round "1"]
[TimeControl "180+1"]
[Date "2023.11.07"]
[WhiteClock "0:00:03"]
[BlackClock "0:00:15"]
[Board "114"]

1. e4 {[%clk 0:03:00]}  g6 {[%clk 0:02:56]} 2. d4 {[%clk 0:02:59]}  Bg7 {[%clk 0:02:55]} 3. g3 {[%clk 0:02:55]}  c6 {[%clk 0:02:51]} 4. Bg2 {[%clk 0:02:49]}  d5 {[%clk 0:02:50]} 5. c3 {[%clk 0:02:46]}  dxe4 {[%clk 0:02:42]} 6. Bxe4 {[%clk 0:02:46]}  Nf6 {[%clk 0:02:41]} 7. Bg2 {[%clk 0:02:46]}  e5 {[%clk 0:02:34]} 8. Ne2 {[%clk 0:02:43]}  O-O {[%clk 0:02:31]} 9. O-O {[%clk 0:02:42]}  Nbd7 {[%clk 0:02:00]} 10. Na3 {[%clk 0:02:36]}  exd4 {[%clk 0:01:55]} 11. Nxd4 {[%clk 0:02:36]}  Ne5 {[%clk 0:01:54]} 12. Bf4 {[%clk 0:02:27]}  Nd5 {[%clk 0:01:50]} 13. Bxe5 {[%clk 0:02:18]}  Bxe5 {[%clk 0:01:49]} 14. Nc4 {[%clk 0:02:17]}  Bg7 {[%clk 0:01:46]} 15. Re1 {[%clk 0:02:16]}  Nf6 {[%clk 0:01:09]} 16. a4 {[%clk 0:02:07]}  Bd7 {[%clk 0:01:04]} 17. Qb3 {[%clk 0:01:57]}  Qc7 {[%clk 0:00:57]} 18. a5 {[%clk 0:01:57]}  Rfe8 {[%clk 0:00:54]} 19. Ne5 {[%clk 0:01:52]}  Rxe5 {[%clk 0:00:51]} 20. Rxe5 {[%clk 0:01:52]}  Qxe5 {[%clk 0:00:51]} 21. Qxb7 {[%clk 0:01:52]}  Rb8 {[%clk 0:00:50]} 22. Qxa7 {[%clk 0:01:51]}  Rxb2 {[%clk 0:00:49]} 23. a6 {[%clk 0:01:50]}  Bf8 {[%clk 0:00:46]} 24. Qa8 {[%clk 0:01:40]}  c5 {[%clk 0:00:44]} 25. a7 {[%clk 0:01:22]}  cxd4 {[%clk 0:00:42]} 26. Qf3 {[%clk 0:01:07]}  dxc3 {[%clk 0:00:42]} 27. a8=Q {[%clk 0:01:06]}  c2 {[%clk 0:00:42]} 28. Qfa3 {[%clk 0:00:24]}  Rb8 {[%clk 0:00:26]} 29. Qxb8 {[%clk 0:00:15]}  Qxb8 {[%clk 0:00:25]} 30. Qc1 {[%clk 0:00:14]}  Qb3 {[%clk 0:00:24]} 31. Bf1 {[%clk 0:00:12]}  Kg7 {[%clk 0:00:22]} 32. Bd3 {[%clk 0:00:12]}  Ba4 {[%clk 0:00:19]} 33. h4 {[%clk 0:00:08]}  Bc5 {[%clk 0:00:18]} 34. Kf1 {[%clk 0:00:07]}  Qxd3+ {[%clk 0:00:18]} 35. Kg2 {[%clk 0:00:07]}  Qe4+ {[%clk 0:00:18]} 36. Kh3 {[%clk 0:00:06]}  Ng4 {[%clk 0:00:17]} 37. Qb2+ {[%clk 0:00:04]}  Bd4 {[%clk 0:00:17]} 38. Rxa4 {[%clk 0:00:04]}  Nxf2+ {[%clk 0:00:16]} 39. Kh2 {[%clk 0:00:04]}  Bxb2 {[%clk 0:00:15]} 40. Rxe4 {[%clk 0:00:03]}  c1=Q {[%clk 0:00:15]} 0-1


[Site "https://www.chess.com"]

[Event "Titled Tuesday Blitz November 07 Late 2023"]
[White "Senft, Sean"]
[Black "Perske, Thore"]
[WhiteFideId "2044960"]
[BlackFideId "12902195"]
[WhiteElo "2312"]
[BlackElo "2626"]
[Result "0-1"]
[Round "1"]
[TimeControl "180+1"]
[Date "2023.11.07"]
[WhiteClock "0:00:16"]
[BlackClock "0:00:16"]
[Board "118"]

1. d4 {[%clk 0:02:57]}  Nf6 {[%clk 0:02:58]} 2. c4 {[%clk 0:02:57]}  g6 {[%clk 0:02:58]} 3. Nc3 {[%clk 0:02:58]}  Bg7 {[%clk 0:02:58]} 4. e4 {[%clk 0:02:59]}  O-O {[%clk 0:02:58]} 5. f4 {[%clk 0:03:00]}  d6 {[%clk 0:02:58]} 6. Nf3 {[%clk 0:03:00]}  c5 {[%clk 0:02:58]} 7. d5 {[%clk 0:03:01]}  e6 {[%clk 0:02:59]} 8. Be2 {[%clk 0:03:01]}  exd5 {[%clk 0:02:59]} 9. exd5 {[%clk 0:03:02]}  Re8 {[%clk 0:02:57]} 10. O-O {[%clk 0:03:03]}  a6 {[%clk 0:02:57]} 11. a4 {[%clk 0:03:03]}  Bf5 {[%clk 0:02:45]} 12. Bd3 {[%clk 0:03:03]}  Bxd3 {[%clk 0:02:40]} 13. Qxd3 {[%clk 0:03:04]}  Nbd7 {[%clk 0:02:40]} 14. f5 {[%clk 0:03:05]}  Ng4 {[%clk 0:02:30]} 15. Bg5 {[%clk 0:03:04]}  Nde5 {[%clk 0:02:11]} 16. Nxe5 {[%clk 0:02:48]}  Qxg5 {[%clk 0:01:33]} 17. Nxg4 {[%clk 0:02:24]}  Qxg4 {[%clk 0:01:34]} 18. f6 {[%clk 0:02:17]}  Bh6 {[%clk 0:01:30]} 19. Rae1 {[%clk 0:02:16]}  Qd4+ {[%clk 0:01:17]} 20. Qxd4 {[%clk 0:02:16]}  cxd4 {[%clk 0:01:18]} 21. Ne4 {[%clk 0:02:04]}  Be3+ {[%clk 0:01:17]} 22. Rxe3 {[%clk 0:02:05]}  dxe3 {[%clk 0:01:17]} 23. Nxd6 {[%clk 0:02:06]}  Re5 {[%clk 0:01:05]} 24. Nxb7 {[%clk 0:01:48]}  Rb8 {[%clk 0:00:59]} 25. Na5 {[%clk 0:01:35]}  Rxb2 {[%clk 0:00:48]} 26. Nc6 {[%clk 0:01:17]}  Re4 {[%clk 0:00:47]} 27. d6 {[%clk 0:01:12]}  Rd2 {[%clk 0:00:45]} 28. c5 {[%clk 0:01:10]}  Rc4 {[%clk 0:00:32]} 29. Ne7+ {[%clk 0:00:55]}  Kh8 {[%clk 0:00:25]} 30. c6 {[%clk 0:00:20]}  Rxd6 {[%clk 0:00:20]} 31. Rb1 {[%clk 0:00:18]}  Rxf6 {[%clk 0:00:17]} 32. Nd5 {[%clk 0:00:14]}  Rfxc6 {[%clk 0:00:16]} 33. Nxe3 {[%clk 0:00:15]}  Rc1+ {[%clk 0:00:16]} 34. Rxc1 {[%clk 0:00:15]}  Rxc1+ {[%clk 0:00:16]} 35. Kf2 {[%clk 0:00:16]}  Ra1 {[%clk 0:00:16]} 36. Nd5 {[%clk 0:00:16]}  Rxa4 {[%clk 0:00:16]} 37. Nb6 {[%clk 0:00:16]}  Ra2+ {[%clk 0:00:16]} 0-1


[Site "https://www.chess.com"]

[Event "Titled Tuesday Blitz November 07 Late 2023"]
[White "Aarav Dengla"]
[Black "Andersson, Bjorn 1971"]
[WhiteFideId "45059756"]
[BlackFideId "1702114"]
[WhiteElo "2624"]
[BlackElo "2306"]
[Result "1-0"]
[Round "1"]
[TimeControl "180+1"]
[Date "2023.11.07"]
[WhiteClock "0:00:22"]
[BlackClock "0:00:12"]
[Board "119"]

1. e4 {[%clk 0:03:00]}  c5 {[%clk 0:02:59]} 2. Nf3 {[%clk 0:02:56]}  Nc6 {[%clk 0:03:00]} 3. d4 {[%clk 0:02:52]}  cxd4 {[%clk 0:03:00]} 4. Nxd4 {[%clk 0:02:53]}  Nf6 {[%clk 0:02:59]} 5. Nc3 {[%clk 0:02:51]}  e5 {[%clk 0:02:58]} 6. Ndb5 {[%clk 0:02:48]}  d6 {[%clk 0:02:57]} 7. Bg5 {[%clk 0:02:42]}  a6 {[%clk 0:02:57]} 8. Na3 {[%clk 0:02:41]}  b5 {[%clk 0:02:58]} 9. Nab1 {[%clk 0:02:41]}  Be7 {[%clk 0:02:55]} 10. Bxf6 {[%clk 0:02:24]}  gxf6 {[%clk 0:02:53]} 11. Nd5 {[%clk 0:02:25]}  f5 {[%clk 0:02:51]} 12. Nd2 {[%clk 0:02:06]}  f4 {[%clk 0:02:46]} 13. c3 {[%clk 0:01:54]}  Be6 {[%clk 0:02:45]} 14. Be2 {[%clk 0:01:51]}  Bg5 {[%clk 0:02:41]} 15. g3 {[%clk 0:01:35]}  Ne7 {[%clk 0:02:21]} 16. gxf4 {[%clk 0:01:20]}  Nxd5 {[%clk 0:02:18]} 17. fxg5 {[%clk 0:01:16]}  Nf4 {[%clk 0:02:18]} 18. Rg1 {[%clk 0:01:08]}  Nh3 {[%clk 0:02:05]} 19. Rg3 {[%clk 0:01:05]}  Nxg5 {[%clk 0:02:04]} 20. Bf1 {[%clk 0:01:05]}  h6 {[%clk 0:01:50]} 21. Qh5 {[%clk 0:00:57]}  Qf6 {[%clk 0:01:48]} 22. h4 {[%clk 0:00:43]}  Nh7 {[%clk 0:01:45]} 23. a4 {[%clk 0:00:43]}  bxa4 {[%clk 0:01:15]} 24. Rxa4 {[%clk 0:00:44]}  a5 {[%clk 0:01:14]} 25. Bb5+ {[%clk 0:00:42]}  Ke7 {[%clk 0:01:13]} 26. Bc6 {[%clk 0:00:39]}  Ra6 {[%clk 0:01:03]} 27. Bd5 {[%clk 0:00:37]}  Bxd5 {[%clk 0:00:53]} 28. exd5 {[%clk 0:00:37]}  Rb8 {[%clk 0:00:24]} 29. b3 {[%clk 0:00:32]}  Rc8 {[%clk 0:00:18]} 30. Ke2 {[%clk 0:00:21]}  Rxc3 {[%clk 0:00:17]} 31. Rxc3 {[%clk 0:00:20]}  Qf4 {[%clk 0:00:16]} 32. Rxf4 {[%clk 0:00:19]}  exf4 {[%clk 0:00:15]} 33. Rc7+ {[%clk 0:00:20]}  Kf6 {[%clk 0:00:12]} 34. Qxf7+ {[%clk 0:00:21]}  Ke5 {[%clk 0:00:12]} 35. Qe6+ {[%clk 0:00:22]}  Kd4 {[%clk 0:00:12]} 36. Qe4# {[%clk 0:00:22]} 1-0


[Site "https://www.chess.com"]

[Event "Titled Tuesday Blitz November 07 Late 2023"]
[White "reevecanada"]
[Black "ilya2700"]
[WhiteElo "2619"]
[BlackElo "2303"]
[Result "1-0"]
[Round "1"]
[TimeControl "180+1"]
[Date "2023.11.07"]
[WhiteClock "0:01:02"]
[BlackClock "0:00:00"]
[Board "123"]

1. e4 {[%clk 0:02:57]}  c5 {[%clk 0:03:00]} 2. Nf3 {[%clk 0:02:54]}  e6 {[%clk 0:03:00]} 3. d4 {[%clk 0:02:54]}  cxd4 {[%clk 0:03:00]} 4. Nxd4 {[%clk 0:02:53]}  Nf6 {[%clk 0:03:01]} 5. Nc3 {[%clk 0:02:52]}  Nc6 {[%clk 0:03:01]} 6. Nxc6 {[%clk 0:02:51]}  bxc6 {[%clk 0:03:01]} 7. e5 {[%clk 0:02:51]}  Nd5 {[%clk 0:03:01]} 8. Ne4 {[%clk 0:02:51]}  Qc7 {[%clk 0:03:02]} 9. f4 {[%clk 0:02:50]}  Qb6 {[%clk 0:03:02]} 10. Qe2 {[%clk 0:02:49]}  Be7 {[%clk 0:02:57]} 11. a3 {[%clk 0:02:47]}  f5 {[%clk 0:02:50]} 12. Ng3 {[%clk 0:02:31]}  a5 {[%clk 0:02:35]} 13. c4 {[%clk 0:02:28]}  Ba6 {[%clk 0:02:31]} 14. Nh5 {[%clk 0:02:19]}  O-O {[%clk 0:02:02]} 15. g4 {[%clk 0:02:13]}  Qd4 {[%clk 0:01:37]} 16. g5 {[%clk 0:01:34]}  g6 {[%clk 0:01:17]} 17. Nf6+ {[%clk 0:01:12]}  Bxf6 {[%clk 0:01:18]} 18. gxf6 {[%clk 0:01:12]}  Nxf4 {[%clk 0:01:18]} 19. Qe3 {[%clk 0:01:11]}  Qxe3+ {[%clk 0:00:28]} 20. Bxe3 {[%clk 0:01:12]}  Nh5 {[%clk 0:00:21]} 21. O-O-O {[%clk 0:01:07]}  Rf7 {[%clk 0:00:08]} 22. Be2 {[%clk 0:01:06]}  Kf8 {[%clk 0:00:07]} 23. Bxh5 {[%clk 0:01:05]}  gxh5 {[%clk 0:00:08]} 24. Rhg1 {[%clk 0:01:04]}  Bxc4 {[%clk 0:00:06]} 25. Bh6+ {[%clk 0:01:03]}  Ke8 {[%clk 0:00:00]} 26. Rg8+ {[%clk 0:01:02]} 1-0


[Site "https://www.chess.com"]

[Event "Titled Tuesday Blitz November 07 Late 2023"]
[White "Seemann, Jakub"]
[Black "Prohorov, Olexandr"]
[WhiteFideId "21874697"]
[BlackFideId "14105578"]
[WhiteElo "2615"]
[BlackElo "2299"]
[Result "1-0"]
[Round "1"]
[TimeControl "180+1"]
[Date "2023.11.07"]
[WhiteClock "0:01:14"]
[BlackClock "0:01:07"]
[Board "125"]

1. Nf3 {[%clk 0:02:55]}  c5 {[%clk 0:02:59]} 2. g3 {[%clk 0:02:42]}  g6 {[%clk 0:02:59]} 3. Bg2 {[%clk 0:02:42]}  Bg7 {[%clk 0:02:59]} 4. O-O {[%clk 0:02:41]}  Nc6 {[%clk 0:02:58]} 5. c4 {[%clk 0:02:39]}  Nf6 {[%clk 0:02:58]} 6. Nc3 {[%clk 0:02:38]}  O-O {[%clk 0:02:57]} 7. d4 {[%clk 0:02:36]}  cxd4 {[%clk 0:02:58]} 8. Nxd4 {[%clk 0:02:37]}  a6 {[%clk 0:02:45]} 9. b3 {[%clk 0:02:30]}  Ng4 {[%clk 0:02:44]} 10. Nxc6 {[%clk 0:02:28]}  bxc6 {[%clk 0:02:44]} 11. Bb2 {[%clk 0:02:27]}  Qa5 {[%clk 0:02:43]} 12. Na4 {[%clk 0:02:24]}  Bxb2 {[%clk 0:02:31]} 13. Nxb2 {[%clk 0:02:25]}  Qc3 {[%clk 0:02:26]} 14. Qc1 {[%clk 0:02:22]}  Qxc1 {[%clk 0:02:19]} 15. Raxc1 {[%clk 0:02:23]}  Rb8 {[%clk 0:02:17]} 16. Nd3 {[%clk 0:02:22]}  Bb7 {[%clk 0:02:14]} 17. Rfd1 {[%clk 0:02:20]}  d6 {[%clk 0:02:13]} 18. c5 {[%clk 0:02:20]}  d5 {[%clk 0:02:13]} 19. h3 {[%clk 0:02:20]}  Nf6 {[%clk 0:02:13]} 20. Ne5 {[%clk 0:02:20]}  Rfd8 {[%clk 0:02:13]} 21. e3 {[%clk 0:02:14]}  Nd7 {[%clk 0:02:12]} 22. Nd3 {[%clk 0:02:01]}  e5 {[%clk 0:02:12]} 23. e4 {[%clk 0:02:01]}  dxe4 {[%clk 0:02:01]} 24. Bxe4 {[%clk 0:02:00]}  f5 {[%clk 0:02:01]} 25. Bg2 {[%clk 0:01:55]}  a5 {[%clk 0:01:57]} 26. Nb2 {[%clk 0:01:30]}  Ba8 {[%clk 0:01:30]} 27. Rd6 {[%clk 0:01:27]}  Kf7 {[%clk 0:01:24]} 28. Bxc6 {[%clk 0:01:22]}  Bxc6 {[%clk 0:01:21]} 29. Rxc6 {[%clk 0:01:23]}  Rdc8 {[%clk 0:01:18]} 30. Rxc8 {[%clk 0:01:22]}  Rxc8 {[%clk 0:01:17]} 31. Na4 {[%clk 0:01:21]}  Ke6 {[%clk 0:01:15]} 32. c6 {[%clk 0:01:18]}  Nb8 {[%clk 0:01:11]} 33. c7 {[%clk 0:01:14]}  Na6 {[%clk 0:01:07]} 34. Rc6+ {[%clk 0:01:14]} 1-0


[Site "https://www.chess.com"]

[Event "Titled Tuesday Blitz November 07 Late 2023"]
[White "Mesa Cruz, Juan Carlos"]
[Black "ArtemDyachuk"]
[WhiteFideId "6423400"]
[WhiteElo "2294"]
[BlackElo "2611"]
[Result "0-1"]
[Round "1"]
[TimeControl "180+1"]
[Date "2023.11.07"]
[WhiteClock "0:00:54"]
[BlackClock "0:01:46"]
[Board "128"]

1. e4 {[%clk 0:02:57]}  c5 {[%clk 0:03:00]} 2. Nf3 {[%clk 0:02:56]}  d6 {[%clk 0:02:59]} 3. Bb5+ {[%clk 0:02:56]}  Bd7 {[%clk 0:02:54]} 4. Bxd7+ {[%clk 0:02:55]}  Qxd7 {[%clk 0:02:53]} 5. c4 {[%clk 0:02:56]}  g6 {[%clk 0:02:52]} 6. O-O {[%clk 0:02:56]}  Bg7 {[%clk 0:02:52]} 7. d4 {[%clk 0:02:54]}  cxd4 {[%clk 0:02:49]} 8. Nxd4 {[%clk 0:02:55]}  Nf6 {[%clk 0:02:49]} 9. Nc3 {[%clk 0:02:54]}  O-O {[%clk 0:02:50]} 10. f3 {[%clk 0:02:52]}  Nc6 {[%clk 0:02:50]} 11. Be3 {[%clk 0:02:52]}  Rac8 {[%clk 0:02:42]} 12. b3 {[%clk 0:02:51]}  Rfd8 {[%clk 0:02:34]} 13. Qd2 {[%clk 0:02:47]}  a6 {[%clk 0:02:25]} 14. Rac1 {[%clk 0:02:06]}  Nxd4 {[%clk 0:02:21]} 15. Bxd4 {[%clk 0:02:06]}  b5 {[%clk 0:02:22]} 16. Nd5 {[%clk 0:01:58]}  Nxd5 {[%clk 0:02:15]} 17. Bxg7 {[%clk 0:01:55]}  Kxg7 {[%clk 0:02:15]} 18. cxd5 {[%clk 0:01:55]}  Rxc1 {[%clk 0:02:07]} 19. Rxc1 {[%clk 0:01:52]}  Rc8 {[%clk 0:02:08]} 20. Kf2 {[%clk 0:01:46]}  Qa7+ {[%clk 0:02:05]} 21. Ke2 {[%clk 0:01:45]}  Rc5 {[%clk 0:02:01]} 22. Kd3 {[%clk 0:01:16]}  f6 {[%clk 0:01:58]} 23. b4 {[%clk 0:01:09]}  Rxc1 {[%clk 0:01:55]} 24. Qxc1 {[%clk 0:01:09]}  Qf2 {[%clk 0:01:56]} 25. Qc2 {[%clk 0:01:04]}  Qf1+ {[%clk 0:01:54]} 26. Qe2 {[%clk 0:01:02]}  Qb1+ {[%clk 0:01:53]} 27. Qc2 {[%clk 0:00:57]}  Qxb4 {[%clk 0:01:53]} 28. Qc7 {[%clk 0:00:55]}  Qa3+ {[%clk 0:01:52]} 29. Kd4 {[%clk 0:00:53]}  Kf7 {[%clk 0:01:52]} 30. Qd7 {[%clk 0:00:53]}  Qxa2 {[%clk 0:01:47]} 31. Qe6+ {[%clk 0:00:52]}  Kf8 {[%clk 0:01:47]} 32. Qc8+ {[%clk 0:00:53]}  Kg7 {[%clk 0:01:48]} 33. Qe8 {[%clk 0:00:54]}  Qd2# {[%clk 0:01:46]} 0-1


[Site "https://www.chess.com"]

[Event "Titled Tuesday Blitz November 07 Late 2023"]
[White "TintinUndercover"]
[Black "Dylag, Emilia"]
[BlackFideId "21805172"]
[WhiteElo "2607"]
[BlackElo "2291"]
[Result "1-0"]
[Round "1"]
[TimeControl "180+1"]
[Date "2023.11.07"]
[WhiteClock "0:00:11"]
[BlackClock "0:00:08"]
[Board "129"]

1. e4 {[%clk 0:02:58]}  c5 {[%clk 0:02:57]} 2. c3 {[%clk 0:02:58]}  e5 {[%clk 0:02:54]} 3. Bc4 {[%clk 0:02:56]}  Nf6 {[%clk 0:02:51]} 4. d3 {[%clk 0:02:55]}  Nc6 {[%clk 0:02:49]} 5. Nf3 {[%clk 0:02:50]}  Be7 {[%clk 0:02:38]} 6. O-O {[%clk 0:02:44]}  d5 {[%clk 0:02:38]} 7. exd5 {[%clk 0:02:43]}  Nxd5 {[%clk 0:02:38]} 8. Re1 {[%clk 0:02:43]}  Qd6 {[%clk 0:01:58]} 9. Nbd2 {[%clk 0:02:35]}  O-O {[%clk 0:01:55]} 10. Bb3 {[%clk 0:02:28]}  Be6 {[%clk 0:01:48]} 11. Nc4 {[%clk 0:02:14]}  Qc7 {[%clk 0:01:41]} 12. Nfxe5 {[%clk 0:02:12]}  Nxe5 {[%clk 0:01:40]} 13. Nxe5 {[%clk 0:02:13]}  Rad8 {[%clk 0:01:35]} 14. d4 {[%clk 0:01:50]}  b5 {[%clk 0:01:30]} 15. Qf3 {[%clk 0:01:36]}  Bf6 {[%clk 0:01:10]} 16. a4 {[%clk 0:01:20]}  a6 {[%clk 0:01:06]} 17. axb5 {[%clk 0:00:52]}  axb5 {[%clk 0:01:06]} 18. Qe2 {[%clk 0:00:47]}  cxd4 {[%clk 0:01:00]} 19. cxd4 {[%clk 0:00:48]}  b4 {[%clk 0:00:51]} 20. Bd2 {[%clk 0:00:43]}  Qb6 {[%clk 0:00:49]} 21. Rac1 {[%clk 0:00:35]}  Rc8 {[%clk 0:00:37]} 22. Bxd5 {[%clk 0:00:22]}  Rxc1 {[%clk 0:00:35]} 23. Rxc1 {[%clk 0:00:13]}  Bxd5 {[%clk 0:00:35]} 24. Nd7 {[%clk 0:00:14]}  Qb7 {[%clk 0:00:15]} 25. Nxf8 {[%clk 0:00:14]}  Kxf8 {[%clk 0:00:16]} 26. Bxb4+ {[%clk 0:00:13]}  Be7 {[%clk 0:00:08]} 27. Qxe7+ {[%clk 0:00:10]}  Qxe7 {[%clk 0:00:08]} 28. Rc8# {[%clk 0:00:11]} 1-0


[Site "https://www.chess.com"]

[Event "Titled Tuesday Blitz November 07 Late 2023"]
[White "Fiorito, Francisco"]
[Black "Minina, Veronika"]
[WhiteFideId "180165"]
[BlackFideId "4174780"]
[WhiteElo "2603"]
[BlackElo "2287"]
[Result "1-0"]
[Round "1"]
[TimeControl "180+1"]
[Date "2023.11.07"]
[WhiteClock "0:01:03"]
[BlackClock "0:00:00"]
[Board "131"]

1. Nf3 {[%clk 0:03:00]}  Nf6 {[%clk 0:02:59]} 2. g3 {[%clk 0:03:01]}  g6 {[%clk 0:03:00]} 3. b3 {[%clk 0:02:59]}  Bg7 {[%clk 0:03:01]} 4. Bb2 {[%clk 0:02:59]}  O-O {[%clk 0:03:00]} 5. Bg2 {[%clk 0:03:00]}  d5 {[%clk 0:02:56]} 6. c4 {[%clk 0:02:35]}  c5 {[%clk 0:02:57]} 7. cxd5 {[%clk 0:02:28]}  Qxd5 {[%clk 0:02:57]} 8. O-O {[%clk 0:02:24]}  Qd6 {[%clk 0:02:48]} 9. Na3 {[%clk 0:02:21]}  Nc6 {[%clk 0:02:41]} 10. Rc1 {[%clk 0:02:19]}  a6 {[%clk 0:02:18]} 11. Nc4 {[%clk 0:02:18]}  Qd8 {[%clk 0:02:09]} 12. Nce5 {[%clk 0:02:03]}  Nxe5 {[%clk 0:01:48]} 13. Bxe5 {[%clk 0:02:04]}  Bd7 {[%clk 0:01:35]} 14. Rxc5 {[%clk 0:02:00]}  Bc6 {[%clk 0:01:26]} 15. Rc1 {[%clk 0:01:57]}  Qd5 {[%clk 0:01:19]} 16. d3 {[%clk 0:01:47]}  Rad8 {[%clk 0:01:11]} 17. Qc2 {[%clk 0:01:45]}  Bh6 {[%clk 0:00:32]} 18. Rcd1 {[%clk 0:01:33]}  Rc8 {[%clk 0:00:32]} 19. Qc4 {[%clk 0:01:26]}  Qd7 {[%clk 0:00:24]} 20. Qh4 {[%clk 0:01:22]}  Bg7 {[%clk 0:00:20]} 21. Rc1 {[%clk 0:01:21]}  h6 {[%clk 0:00:17]} 22. Rc4 {[%clk 0:01:18]}  Rfd8 {[%clk 0:00:14]} 23. Rfc1 {[%clk 0:01:17]}  b5 {[%clk 0:00:13]} 24. Rc5 {[%clk 0:01:09]}  Nd5 {[%clk 0:00:13]} 25. Bxg7 {[%clk 0:01:09]}  Kxg7 {[%clk 0:00:13]} 26. Ne5 {[%clk 0:01:08]}  g5 {[%clk 0:00:00]} 27. Qd4 {[%clk 0:01:03]} 1-0


[Site "https://www.chess.com"]

[Event "Titled Tuesday Blitz November 07 Late 2023"]
[White "Awoki, Daniel Teidi"]
[Black "Sivakumar, Shaaketh"]
[WhiteFideId "2100827"]
[BlackFideId "30940176"]
[WhiteElo "2284"]
[BlackElo "2598"]
[Result "0-1"]
[Round "1"]
[TimeControl "180+1"]
[Date "2023.11.07"]
[WhiteClock "0:00:00"]
[BlackClock "0:00:19"]
[Board "134"]

1. e4 {[%clk 0:03:00]}  e6 {[%clk 0:03:00]} 2. d4 {[%clk 0:03:00]}  d5 {[%clk 0:03:01]} 3. Nd2 {[%clk 0:03:01]}  c5 {[%clk 0:03:01]} 4. exd5 {[%clk 0:03:01]}  exd5 {[%clk 0:03:01]} 5. Ngf3 {[%clk 0:03:02]}  Nc6 {[%clk 0:03:01]} 6. Bb5 {[%clk 0:03:02]}  Qe7+ {[%clk 0:03:02]} 7. Qe2 {[%clk 0:02:51]}  Qxe2+ {[%clk 0:03:02]} 8. Kxe2 {[%clk 0:02:51]}  a6 {[%clk 0:03:02]} 9. Bxc6+ {[%clk 0:02:50]}  bxc6 {[%clk 0:03:03]} 10. Re1 {[%clk 0:02:45]}  f6 {[%clk 0:02:39]} 11. Kf1+ {[%clk 0:02:38]}  Kf7 {[%clk 0:02:38]} 12. dxc5 {[%clk 0:02:35]}  Bxc5 {[%clk 0:02:39]} 13. Nb3 {[%clk 0:02:35]}  Bd6 {[%clk 0:02:38]} 14. Be3 {[%clk 0:02:32]}  a5 {[%clk 0:02:38]} 15. Nc5 {[%clk 0:02:28]}  Ne7 {[%clk 0:02:36]} 16. Nd3 {[%clk 0:02:16]}  Ba6 {[%clk 0:02:34]} 17. Rad1 {[%clk 0:02:13]}  c5 {[%clk 0:02:23]} 18. Kg1 {[%clk 0:02:11]}  d4 {[%clk 0:02:23]} 19. Bf4 {[%clk 0:02:05]}  Bxf4 {[%clk 0:02:18]} 20. Nxf4 {[%clk 0:02:05]}  Rhd8 {[%clk 0:02:18]} 21. b3 {[%clk 0:01:52]}  Rac8 {[%clk 0:02:12]} 22. Re6 {[%clk 0:01:48]}  Bb7 {[%clk 0:02:04]} 23. Rde1 {[%clk 0:01:46]}  Rd7 {[%clk 0:02:01]} 24. Nd2 {[%clk 0:01:37]}  Rcc7 {[%clk 0:01:41]} 25. Nc4 {[%clk 0:01:31]}  Nd5 {[%clk 0:01:41]} 26. Nd3 {[%clk 0:01:13]}  a4 {[%clk 0:00:48]} 27. Na5 {[%clk 0:01:01]}  axb3 {[%clk 0:00:42]} 28. axb3 {[%clk 0:01:00]}  Bc8 {[%clk 0:00:41]} 29. Nc4 {[%clk 0:00:57]}  Kg6 {[%clk 0:00:28]} 30. Nb6 {[%clk 0:00:52]}  Nxb6 {[%clk 0:00:22]} 31. Rxb6 {[%clk 0:00:52]}  c4 {[%clk 0:00:20]} 32. Ne5+ {[%clk 0:00:50]}  Kf5 {[%clk 0:00:18]} 33. Nxd7 {[%clk 0:00:50]}  Bxd7 {[%clk 0:00:19]} 34. bxc4 {[%clk 0:00:49]}  Rxc4 {[%clk 0:00:20]} 35. Rb2 {[%clk 0:00:47]}  Ba4 {[%clk 0:00:20]} 36. Re2 {[%clk 0:00:26]}  d3 {[%clk 0:00:20]} 37. Re1 {[%clk 0:00:14]}  dxc2 {[%clk 0:00:19]} 38. Rc1 {[%clk 0:00:00]}  Rd4 {[%clk 0:00:19]} 0-1


[Site "https://www.chess.com"]